bitfinex-derivatives/quotes_ETHF0:USTF0_20250911
["timestamp","ask_amount","ask_price","bid_price","bid_amount"]
[1757625910700,0.9407,4420.1,4420.0,0.3208]
[1757625911000,0.9407,4420.1,4420.0,0.6183]
[1757625912694,0.9407,4420.1,4420.0,0.8255]
[1757625914404,0.9407,4420.1,4420.0,0.4944]
[1757625914797,0.9407,4420.1,4419.6,0.2975]
[1757625917198,0.9407,4420.1,4419.5,0.1239]
[1757625917199,0.1115,4420.0,4419.5,0.1239]
[1757625917405,0.7137,4419.6,4419.5,0.1969]
[1757625917901,0.7137,4419.6,4419.5,0.4944]
[1757625918497,1.33443883,4419.6,4419.5,0.4944]
[1757625922206,0.7137,4419.6,4419.5,0.4944]
[1757625934325,0.7137,4419.6,4419.5,0.2975]
[1757625934821,0.7137,4419.6,4419.5,0.5129]
[1757625941232,1.3340106,4419.6,4419.5,0.5129]
[1757625945231,1.3340106,4419.6,4419.5,0.7246]
[1757625951922,1.3340106,4419.6,4419.5,0.8424]
[1757625953536,0.6203106,4419.6,4419.5,1.06867]
[1757625953737,0.6288,4420.3,4420.2,0.4271]
[1757625954037,1.54394831,4420.3,4420.2,0.7492]
[1757625954628,1.54394831,4420.3,4420.2,0.5375]
[1757625966047,1.54394831,4420.3,4420.2,0.7469]
[1757625982654,1.02314831,4420.3,4420.2,0.7469]
[1757625982858,0.62134831,4420.3,4420.2,0.7469]
[1757625983848,0.61935537,4420.3,4420.2,0.7469]
[1757625988363,0.1955,4420.4,4420.3,0.733]
[1757625988756,0.81451296,4420.4,4420.3,0.733]
[1757625998566,1.11081296,4420.4,4420.3,0.733]
[1757625999773,0.81451296,4420.4,4420.3,0.733]
[1757626002176,1.11081296,4420.4,4420.3,0.733]
[1757626004271,0.81451296,4420.4,4420.3,0.733]
[1757626005662,1.11081296,4420.4,4420.3,0.733]
[1757626012585,1.31151296,4420.4,4420.3,0.733]
[1757626018391,1.01521296,4420.4,4420.3,0.733]
[1757626019790,0.81451296,4420.4,4420.3,0.733]
[1757626020384,0.61901296,4420.4,4420.3,0.95923]
[1757626020788,0.61901296,4420.4,4420.3,0.733]
[1757626021390,0.226,4420.8,4420.3,0.4093]
[1757626021694,0.82690505,4420.7,4420.6,0.7158]
[1757626023496,0.226,4420.8,4420.7,0.7158]
[1757626023895,0.84467758,4420.8,4420.7,0.7158]
[1757626024203,1.05267758,4420.8,4420.7,0.7158]
[1757626025597,1.35887758,4420.8,4420.7,0.7158]
[1757626026501,1.05267758,4420.8,4420.7,0.7158]
[1757626028897,1.35887758,4420.8,4420.7,0.7158]
[1757626029397,1.05267758,4420.8,4420.7,0.7158]
[1757626029597,0.434,4420.8,4420.7,0.7158]
[1757626029998,0.9517,4420.8,4420.7,0.7158]
[1757626030199,0.226,4420.8,4420.7,0.7158]
[1757626030498,0.226,4421.6,4420.8,0.3057]
[1757626030698,0.5142,4421.4,4421.3,0.213]
[1757626030899,0.5142,4421.4,4421.3,0.5187]
[1757626030900,1.34394287,4421.4,4421.3,0.5187]
[1757626031896,1.34394287,4421.4,4421.3,0.7158]
[1757626034493,0.7257,4421.4,4421.3,0.7158]
[1757626036001,0.208,4421.4,4421.3,0.4101]
[1757626036598,0.208,4421.4,4421.3,0.7158]
[1757626036902,0.5142,4421.4,4421.3,0.7158]
[1757626037202,0.7257,4421.4,4421.3,0.7158]
[1757626040702,0.208,4421.4,4421.3,0.7158]
[1757626040899,0.3062,4421.7,4421.3,0.7158]
[1757626041112,0.208,4421.6,4421.5,0.5294]
[1757626041498,0.208,4421.6,4421.5,0.8351]
[1757626043195,0.5142,4421.6,4421.5,0.8351]
[1757626049706,0.208,4421.6,4421.5,0.8351]
[1757626050113,0.5303,4421.6,4421.5,0.8351]
[1757626052317,0.7434,4421.6,4421.5,0.8351]
[1757626052703,0.226,4421.8,4421.5,0.8351]
[1757626052908,0.1992,4421.8,4421.7,0.7247]
[1757626054707,0.3223,4422.0,4421.7,0.4144]
[1757626054907,0.5215,4422.0,4421.9,0.4144]
[1757626055103,1.13976288,4422.0,4421.9,0.7247]
[1757626055309,0.81746288,4422.0,4421.9,0.7247]
[1757626055509,0.5215,4422.3,4422.2,0.7247]
[1757626055709,1.13974873,4422.3,4422.2,0.7247]
[1757626056110,1.35284873,4422.3,4422.2,0.7247]
[1757626056615,1.35284873,4422.3,4422.2,0.5097]
[1757626057510,1.35284873,4422.3,4422.2,0.3103]
[1757626059217,1.35284873,4422.3,4422.2,0.5097]
[1757626076451,1.35284873,4422.3,4421.6,0.3103]
[1757626076644,0.7346,4421.7,4421.6,0.7247]
[1757626077052,0.4123,4421.7,4421.6,0.7247]
[1757626082551,1.0313585,4421.7,4421.6,0.7247]
[1757626082853,1.03135225,4421.7,4421.6,0.7247]
[1757626083053,1.03135665,4421.7,4421.6,0.7247]
[1757626083253,0.4123,4421.7,4421.6,0.7247]
[1757626086158,0.7321,4421.7,4421.6,0.7247]
[1757626086760,1.35122542,4421.7,4421.6,0.5097]
[1757626089650,1.35122542,4421.7,4421.0,0.1193]
[1757626089855,0.7321,4421.7,4421.1,0.3217]
[1757626090159,0.7321,4421.7,4421.6,0.5238]
[1757626090460,1.35115897,4421.7,4421.6,0.5238]
[1757626096167,1.35115897,4421.7,4421.6,0.7279]
[1757626102869,0.7321,4421.7,4421.6,0.7279]
[1757626103071,1.35097708,4421.7,4421.6,0.7279]
[1757626123980,1.35097708,4421.7,4421.6,0.3217]
[1757626124673,1.33647708,4421.7,4421.6,0.7296]
[1757626124977,1.33647708,4421.7,4421.6,0.5165]
[1757626126283,0.7176,4421.7,4421.6,0.5165]
[1757626126484,1.33764775,4421.7,4421.6,0.5165]
[1757626136307,1.33764775,4421.7,4421.6,0.7296]
[1757626156327,1.01784775,4421.7,4421.6,0.95576]
[1757626156826,1.01784775,4421.7,4421.6,0.7296]
[1757626158027,1.31304775,4421.7,4421.6,0.7296]
[1757626200454,1.01784775,4421.7,4421.6,0.7296]
[1757626200957,1.33364775,4421.7,4421.6,0.7296]
[1757626207064,1.33364775,4421.7,4421.1,0.3028]
[1757626207269,0.715,4421.2,4421.1,0.43998]
[1757626207567,0.715,4421.2,4421.1,0.4226]
[1757626207865,0.715,4421.2,4421.1,0.7254]
[1757626208369,0.3992,4421.2,4421.1,0.7254]
[1757626210661,0.715,4421.2,4421.1,0.7254]
[1757626211265,0.3992,4421.2,4421.1,0.7254]
[1757626215672,0.715,4421.2,4421.1,0.7254]
[1757626222174,0.3992,4421.2,4421.1,0.7254]
[1757626222473,1.21941056,4422.6,4422.5,0.8543]
[1757626222675,1.21941056,4423.6,4423.2,0.7254]
[1757626222880,0.3158,4424.2,4423.6,0.3028]
[1757626223072,0.715,4424.2,4423.8,0.3028]
[1757626223268,0.3992,4424.0,4423.9,0.28129744]
[1757626223571,0.3992,4424.0,4423.1,0.3028]
[1757626223572,1.4405927,4424.0,4423.1,0.3028]
[1757626223766,0.3992,4423.2,4423.1,0.5166]
[1757626224269,0.3992,4423.2,4423.1,0.7254]
[1757626235576,0.3992,4423.2,4423.1,1.00120201]
[1757626236882,4.5694,4423.2,4423.1,0.57860201]
[1757626237083,4.5694,4423.2,4423.1,0.3028]
[1757626237581,4.79548,4423.2,4423.1,0.3028]
[1757626237781,4.5694,4423.2,4423.1,0.3028]
[1757626239370,0.5694,4423.2,4423.1,0.3028]
[1757626243282,0.5694,4423.2,4423.1,0.61310196]
[1757626244185,1.18079381,4423.2,4423.1,0.61310196]
[1757626248894,1.18079381,4423.2,4423.1,0.82830196]
[1757626249082,5.18079381,4423.2,4423.1,0.31030196]
[1757626251280,5.01059381,4423.2,4422.6,0.3086]
[1757626251481,5.01059381,4423.2,4422.0,0.1289]
[1757626251482,0.61139381,4423.1,4422.0,0.1289]
[1757626252193,0.61139381,4423.1,4422.6,0.3086]
[1757626252389,0.61139381,4423.1,4422.0,0.1289]
[1757626252587,0.61139381,4423.1,4422.6,0.3086]
[1757626252784,0.61272845,4423.0,4422.6,0.3086]
[1757626252980,0.83972845,4422.9,4422.6,0.3086]
[1757626253186,0.61272845,4422.8,4422.6,0.3086]
[1757626253386,0.61272845,4422.7,4422.6,0.3086]
[1757626253591,0.61272845,4422.7,4422.6,0.59069197]
[1757626254993,0.61272845,4422.7,4422.6,1.01439197]
[1757626259691,1.21941056,4423.7,4423.6,0.3229]
[1757626259995,1.41711056,4423.9,4423.8,0.4159]
[1757626260200,0.718,4423.9,4423.8,1.02056016]
[1757626263195,0.718,4423.9,4423.8,1.32862991]
[1757626271597,1.32740709,4423.9,4423.8,1.32862991]
[1757626272304,1.32740709,4423.9,4423.8,1.04686975]
[1757626272506,1.32740709,4423.9,4423.8,1.04676277]
[1757626275706,1.55540709,4423.9,4423.8,1.04676277]
[1757626278009,1.23430709,4423.9,4423.8,1.04676277]
[1757626278213,1.55540709,4423.9,4423.8,1.04676277]
[1757626280918,1.55540709,4423.9,4423.8,1.33278525]
[1757626283022,1.55540709,4423.9,4423.8,1.04676277]
[1757626283410,1.55540709,4423.9,4423.8,0.7388]
[1757626283619,1.55540709,4423.9,4423.8,1.04989342]
[1757626284918,1.55540709,4423.9,4423.8,0.84569342]
[1757626285112,1.55540709,4423.9,4423.8,0.31109342]
[1757626285523,1.55540709,4423.9,4423.8,0.63399342]
[1757626285818,1.55540709,4423.9,4423.8,0.84569342]
[1757626288116,1.55540709,4423.9,4423.8,1.12559926]
[1757626289322,2.16541056,4423.9,4423.8,1.12559926]
[1757626289625,1.55540709,4423.9,4423.8,1.33399926]
[1757626295833,1.55540709,4423.9,4423.8,1.33423916]
[1757626297226,0.80430709,4423.9,4423.8,1.33423916]
[1757626297430,1.54620709,4423.9,4423.8,1.33423916]
[1757626301635,0.83740709,4423.9,4423.8,1.33423916]
[1757626301929,1.03230709,4423.9,4423.8,1.33423916]
[1757626303526,1.03230709,4423.9,4423.8,1.33255782]
[1757626305434,1.33810709,4423.9,4423.8,1.33255782]
[1757626310746,1.03230709,4423.9,4423.8,1.33255782]
[1757626310945,1.03230709,4423.9,4423.8,1.05241208]
[1757626311245,1.03230709,4423.9,4423.8,0.743]
[1757626311544,1.03230709,4423.9,4423.8,1.05247131]
[1757626312043,1.33810709,4423.9,4423.8,1.05247131]
[1757626312248,1.54620709,4423.9,4423.8,1.05247131]
[1757626321662,1.54620709,4423.9,4423.8,1.05257462]
[1757626326859,1.54620709,4423.9,4423.8,0.30957462]
[1757626327053,1.54620709,4423.9,4423.0,0.1175]
[1757626327054,2.38226056,4423.9,4423.1,0.2974]
[1757626327254,0.3073,4423.7,4423.1,0.2974]
[1757626327555,1.53510709,4423.6,4423.5,0.497]
[1757626341669,1.53510709,4423.6,4423.5,0.6919]
[1757626341670,1.00080709,4423.6,4423.5,0.6919]
[1757626341872,0.83640709,4423.6,4423.5,0.8166]
[1757626353980,1.03700709,4423.6,4423.5,0.8166]
[1757626357189,0.83640709,4423.6,4423.5,0.8166]
[1757626357585,1.03700709,4423.6,4423.5,0.8166]
[1757626358388,0.83640709,4423.6,4423.5,0.8166]
[1757626359187,0.60940709,4423.6,4423.5,0.8166]
[1757626361993,0.7352,4424.1,4424.0,0.8121]
[1757626362193,1.3435331,4424.1,4424.0,0.8121]
[1757626364888,1.5440331,4424.1,4424.0,0.8121]
[1757626383711,1.5440331,4424.1,4424.0,0.6949]
[1757626397532,1.5440331,4424.1,4424.0,1.04564]
[1757626397730,1.2364331,4424.1,4424.0,0.8196]
[1757626397933,1.5369331,4424.1,4424.0,0.8196]
[1757626401037,1.5369331,4424.1,4424.0,1.10346557]
[1757626406341,0.9286,4424.1,4424.0,1.10346557]
[1757626406541,1.53600332,4424.1,4424.0,1.10346557]
[1757626433150,1.53600332,4424.1,4424.0,1.09820251]
[1757626437161,1.53600332,4424.1,4424.0,1.09819627]
[1757626445366,1.53600332,4424.1,4424.0,0.97349627]
[1757626456983,1.53600332,4424.1,4424.0,1.09239627]
[1757626466095,1.53661781,4424.1,4424.0,1.09239627]
[1757626482893,1.53661781,4424.1,4424.0,0.97349627]
[1757626483099,1.53661781,4424.1,4424.0,0.77069627]
[1757626486703,1.53661781,4424.1,4424.0,0.57319627]
[1757626486909,1.53661781,4424.1,4424.0,0.27902854]
[1757626490907,1.53661781,4424.1,4423.7,0.3016]
[1757626491112,0.5068,4423.6,4423.5,0.8318]
[1757626491509,1.11481781,4423.6,4423.5,0.8318]
[1757626491815,1.31811781,4423.6,4423.5,0.8318]
[1757626495512,1.31811781,4423.6,4423.5,0.7071]
[1757626502222,1.31811781,4423.6,4423.5,0.8329]
[1757626503426,0.81561781,4423.6,4423.5,0.8329]
[1757626503820,1.34251781,4423.6,4423.5,0.8329]
[1757626506121,1.34251781,4423.6,4423.5,0.7071]
[1757626506327,1.34251781,4423.6,4423.5,0.8329]
[1757626506629,0.7345,4423.6,4423.5,0.8329]
[1757626506824,1.34262281,4423.6,4423.5,0.8329]
[1757626508731,1.34262281,4423.6,4423.5,0.7071]
[1757626511034,1.34262281,4423.6,4423.1,0.3005]
[1757626511235,0.7345,4423.6,4423.1,0.3005]
[1757626512134,0.4176,4423.1,4423.0,0.3197]
[1757626512332,0.7345,4423.1,4423.0,0.3197]
[1757626512534,0.7345,4423.1,4423.0,0.5161]
[1757626512728,0.7345,4423.1,4423.0,0.8166]
[1757626513128,0.4176,4423.1,4423.0,0.8166]
[1757626516430,0.7345,4423.1,4423.0,0.8166]
[1757626517240,0.7345,4423.1,4423.0,0.5027]
[1757626517442,0.4176,4422.7,4422.6,0.5027]
[1757626517739,0.7345,4422.7,4422.6,0.5027]
[1757626517940,0.7345,4422.7,4422.6,0.6991]
[1757626538156,0.3193,4423.2,4422.7,0.3086]
[1757626538358,0.3193,4423.2,4422.6,0.3986]
[1757626538359,0.727,4423.2,4423.1,0.412]
[1757626538654,0.727,4423.2,4423.1,0.7206]
[1757626539356,1.33432167,4423.2,4423.1,0.7206]
[1757626544357,1.33432167,4423.2,4423.1,0.5115]
[1757626546464,1.33432167,4423.2,4423.1,0.3086]
[1757626551261,1.33432167,4423.2,4423.1,0.58616205]
[1757626555370,1.33432167,4423.2,4423.1,0.7890836]
[1757626559670,1.33432167,4423.2,4423.1,0.9981836]
[1757626565874,1.33432167,4423.2,4423.1,0.99811541]
[1757626570679,1.33432167,4423.2,4423.1,0.99806739]
[1757626573589,1.33432167,4423.2,4423.1,1.30676005]
[1757626577398,1.33432167,4423.2,4423.1,1.02929266]
[1757626577694,1.33432167,4423.2,4423.1,1.30676756]
[1757626581299,1.33432167,4423.2,4423.1,0.9980749]
[1757626581496,1.33432167,4423.2,4423.1,1.30671009]
[1757626603609,1.33432167,4423.2,4423.1,0.9980749]
[1757626612307,1.33432167,4423.2,4423.1,0.7206]
[1757626612508,1.33432167,4423.2,4423.1,0.99853501]
[1757626616009,1.01502167,4423.2,4423.1,0.99853501]
[1757626618314,1.31322167,4423.2,4423.1,0.99853501]
[1757626620110,1.31322167,4423.2,4423.1,1.27647866]
[1757626620311,1.31322167,4423.2,4423.1,0.99854365]
[1757626630822,1.31322167,4423.2,4423.1,0.7206]
[1757626631024,1.31322167,4423.2,4423.1,0.99850199]
[1757626633626,1.31322167,4423.2,4423.1,1.30947166]
[1757626646131,1.31322167,4423.2,4423.1,1.31048586]
[1757626666346,0.60732167,4423.2,4423.1,1.31048586]
[1757626666837,0.60732167,4423.2,4423.1,1.53656586]
[1757626667838,0.60732167,4423.2,4423.1,1.31048586]
[1757626673753,3.5163,4423.8,4423.2,0.2994]
[1757626673957,3.5163,4423.8,4423.7,0.5125]
[1757626673958,3.9178,4423.8,4423.7,0.5125]
[1757626674258,4.52664374,4423.8,4423.7,1.10238586]
[1757626678262,4.01594374,4423.8,4423.7,1.30258586]
[1757626678458,1.03414374,4423.8,4423.7,1.30258586]
[1757626678663,1.33294374,4423.8,4423.7,1.30258586]
[1757626678960,1.54464374,4423.8,4423.7,1.30258586]
[1757626680561,0.60884374,4423.8,4423.7,4.51038586]
[1757626680864,0.9393,4423.8,4423.7,0.58988586]
[1757626681171,0.9393,4423.8,4422.8,0.226]
[1757626681172,10.20127099,4423.8,4422.8,0.3096]
[1757626681468,3.2078,4423.3,4422.8,0.3096]
[1757626681765,0.83471043,4423.2,4422.8,0.3096]
[1757626681964,0.60871043,4423.1,4423.0,0.4278]
[1757626689070,0.60871043,4423.1,4423.0,0.6356]
[1757626689266,0.60871043,4423.1,4423.0,0.4278]
[1757626690270,0.60871043,4423.1,4423.0,0.6356]
[1757626690567,4.60871043,4423.1,4422.6,0.3096]
[1757626690767,0.4519,4423.2,4422.0,3.326]
[1757626690768,3.2078,4422.8,4422.7,0.3096]
[1757626690969,4.04251043,4422.8,4422.7,0.3096]
[1757626697676,0.83471043,4422.8,4422.7,0.3096]
[1757626698382,0.83471043,4422.8,4422.7,0.7305]
[1757626703488,1.06061043,4422.8,4422.7,0.7305]
[1757626714596,0.83461043,4422.8,4422.7,0.7305]
[1757626714798,1.06061043,4422.8,4422.7,0.7305]
[1757626729420,0.83461043,4422.8,4422.7,0.7305]
[1757626752140,0.2259,4422.8,4422.7,0.7305]
[1757626753741,0.83474928,4422.8,4422.7,0.7305]
[1757626756245,0.2259,4422.8,4422.7,0.7305]
[1757626785184,3.4338,4424.1,4423.7,0.3226]
[1757626785384,0.60813653,4424.0,4423.7,0.3226]
[1757626785684,0.60813653,4423.9,4423.7,0.206]
[1757626785882,3.4338,4424.1,4424.0,0.444]
[1757626786083,4.04193651,4424.1,4424.0,0.444]
[1757626786385,4.26797652,4424.1,4424.0,0.444]
[1757626786685,4.04193651,4424.1,4424.0,0.444]
[1757626800399,4.04193651,4424.1,4423.5,0.1214]
[1757626800400,7.81593651,4424.1,4423.6,0.2964]
[1757626800592,7.81593651,4424.1,4423.5,0.1214]
[1757626800593,0.226,4424.2,4424.1,0.4934]
[1757626800899,0.83346347,4424.2,4424.0,0.1197]
[1757626801100,0.60746347,4424.1,4424.0,0.4161]
[1757626801400,0.83346347,4424.1,4424.0,0.8141]
[1757626812612,0.60746347,4424.1,4424.0,0.8141]
[1757626812813,0.83346347,4424.1,4424.0,0.8141]
[1757626815311,0.83346347,4424.1,4424.0,0.4161]
[1757626824619,0.60746347,4424.1,4424.0,0.4161]
[1757626824821,0.83346347,4424.1,4424.0,0.4161]
[1757626826315,0.60746347,4424.1,4424.0,0.4161]
[1757626827018,0.60746347,4424.1,4424.0,0.6171]
[1757626827427,0.83346347,4424.1,4424.0,0.6171]
[1757626834128,4.04126347,4424.1,4424.0,0.6171]
[1757626835032,4.04126347,4424.1,4424.0,0.8294]
[1757626841536,4.04126347,4424.1,4424.0,0.4251]
[1757626843738,5.26165579,4424.1,4424.0,0.4251]
[1757626849842,5.26165579,4424.1,4424.0,0.6357]
[1757626853750,4.04126347,4424.1,4424.0,0.6357]
[1757626862960,3.81526347,4424.1,4424.0,0.6357]
[1757626863162,4.04126347,4424.1,4424.0,0.6357]
[1757626881278,3.81526347,4424.1,4424.0,0.6357]
[1757626881470,4.04126347,4424.1,4424.0,0.6357]
[1757626883077,0.83346347,4424.1,4424.0,0.6357]
[1757626883279,4.04126347,4424.1,4424.0,0.6357]
[1757626884076,3.81526347,4424.1,4424.0,0.6357]
[1757626884278,4.04126347,4424.1,4424.0,0.6357]
[1757626886970,3.8167099,4424.1,4424.0,0.6357]
[1757626887173,4.0427099,4424.1,4424.0,0.6357]
[1757626902490,3.8167099,4424.1,4424.0,0.6357]
[1757626902690,4.0427099,4424.1,4424.0,0.6357]
[1757626906808,0.8349099,4424.1,4424.0,0.6357]
[1757626907106,4.0427099,4424.1,4424.0,0.6357]
[1757626907708,0.8349099,4424.1,4424.0,0.6357]
[1757626907902,4.0427099,4424.1,4424.0,0.6357]
[1757626912115,4.0427099,4424.1,4424.0,0.6357]
[1757626917012,0.8349099,4424.1,4424.0,0.6357]
[1757626917616,0.83518562,4424.1,4424.0,0.6357]
[1757626927718,0.83518562,4424.1,4424.0,0.8396]
[1757626933520,0.60918562,4424.1,4424.0,0.8396]
[1757626933721,0.83518562,4424.1,4424.0,0.8396]
[1757626934021,2.056346,4424.1,4424.0,0.8396]
[1757626934620,1.830346,4424.1,4424.0,0.8396]
[1757626934925,2.056346,4424.1,4424.0,0.8396]
[1757626939217,2.05660822,4424.1,4424.0,0.8396]
[1757626943127,1.83060822,4424.1,4424.0,0.8396]
[1757626943426,2.05660822,4424.1,4424.0,0.8396]
[1757626943829,0.83544784,4424.1,4424.0,0.8396]
[1757626946224,0.60944784,4424.1,4424.0,0.8396]
[1757626946429,0.83544784,4424.1,4424.0,0.8396]
[1757626953627,0.226,4424.1,4424.0,0.8396]
[1757626953816,0.83544141,4424.1,4424.0,0.8396]
[1757626965740,0.60944141,4424.1,4424.0,0.8396]
[1757626965934,0.83544141,4424.1,4424.0,0.8396]
[1757626970042,0.60944141,4424.1,4424.0,0.8396]
[1757626970242,0.83544141,4424.1,4424.0,1.06564]
[1757626970844,0.83544141,4424.1,4424.0,0.8396]
[1757626973947,0.60944141,4424.1,4424.0,0.8396]
[1757626974141,0.83544141,4424.1,4424.0,0.8396]
[1757626976746,0.83535551,4424.1,4424.0,0.8396]
[1757626981956,0.85083829,4424.1,4424.0,0.8396]
[1757626982258,0.62483829,4424.1,4424.0,0.8396]
[1757626982460,0.01548278,4424.1,4424.0,4.8396]
[1757626983757,0.6244469,4424.1,4424.0,4.8396]
[1757626987364,0.01548278,4424.1,4424.0,4.8396]
[1757626989568,3.2078,4424.7,4424.6,0.7311]
[1757626989858,4.04211302,4424.7,4424.6,0.7311]
[1757626990064,3.81611302,4424.7,4424.6,0.7311]
[1757626990367,0.60831302,4424.7,4424.6,0.7311]
[1757626990864,3.2078,4425.4,4425.3,0.7311]
[1757626992168,3.5127,4425.4,4425.3,0.7311]
[1757626992966,3.7194,4425.4,4425.3,0.7311]
[1757626994366,3.9193,4425.4,4425.3,0.7311]
[1757626997674,3.7194,4425.4,4425.3,0.7311]
[1757626998074,3.9193,4425.4,4425.3,0.7311]
[1757627000276,3.9193,4425.4,4425.3,0.4077]
[1757627002275,3.9193,4425.4,4425.3,0.2071]
[1757627002776,4.52356894,4425.4,4425.3,0.2071]
[1757627003177,4.52356894,4425.4,4424.5,0.1246]
[1757627003378,1.23686894,4425.3,4425.2,0.2071]
[1757627003579,1.23686894,4425.3,4425.2,0.5305]
[1757627004068,1.54176894,4425.3,4425.2,0.5305]
[1757627004266,1.54176894,4425.3,4425.2,0.2071]
[1757627007972,1.31576894,4425.3,4425.2,0.2071]
[1757627010480,0.90916894,4425.3,4425.2,0.7222]
[1757627010781,1.11406894,4425.3,4425.2,0.7222]
[1757627011081,1.32646894,4425.3,4425.2,0.7222]
[1757627012483,1.32646894,4425.3,4425.2,0.4105]
[1757627016285,1.32646894,4425.3,4425.2,0.2071]
[1757627020287,1.02156894,4425.3,4424.6,0.3117]
[1757627020487,1.34166894,4425.2,4425.1,0.2003]
[1757627021082,1.34166894,4425.2,4425.1,0.512]
[1757627024993,1.34166894,4425.2,4425.1,0.2003]
[1757627025590,1.34166894,4425.2,4425.1,0.7154]
[1757627030693,0.60426894,4425.2,4425.1,0.7154]
[1757627030904,0.3201,4425.5,4425.2,0.3117]
[1757627031093,1.1298246,4425.4,4425.3,0.4037]
[1757627031291,1.3422246,4425.4,4425.3,0.7154]
[1757627032392,1.3422246,4425.4,4425.3,0.4037]
[1757627033299,1.3422246,4425.4,4425.3,0.2003]
[1757627033699,0.6048246,4425.4,4425.3,0.7154]
[1757627033897,0.3201,4425.7,4425.4,0.3117]
[1757627034100,0.867,4426.0,4425.9,0.2003]
[1757627034301,0.867,4426.0,4425.9,0.7154]
[1757627035295,0.867,4426.0,4425.9,0.4037]
[1757627040201,0.867,4426.0,4425.9,0.2003]
[1757627041009,0.2986,4425.9,4425.5,3.2078]
[1757627041310,0.4022,4425.6,4425.5,3.722]
[1757627041510,0.7008,4425.6,4425.5,3.722]
[1757627041706,0.7008,4425.6,4425.5,3.9173]
[1757627042205,0.7008,4425.6,4425.5,3.2078]
[1757627042806,0.7008,4425.6,4425.5,3.413]
[1757627043313,0.7008,4425.6,4425.5,3.2078]
[1757627043513,0.7008,4425.6,4425.5,3.413]
[1757627044308,0.7008,4425.6,4425.5,3.9173]
[1757627049318,0.4996,4425.6,4425.5,3.9173]
[1757627049515,0.2986,4425.6,4425.5,3.9173]
[1757627049814,0.4996,4425.6,4425.5,3.9173]
[1757627051607,0.7008,4425.6,4425.5,3.9173]
[1757627052512,0.7008,4425.6,4425.5,4.1433]
[1757627053912,0.1296,4426.0,4425.5,4.2647]
[1757627054116,0.5318,4426.0,4425.9,0.4005]
[1757627054317,0.5318,4426.0,4425.9,0.7095]
[1757627054715,0.8304,4426.0,4425.9,0.7095]
[1757627055413,1.43436631,4426.0,4425.9,0.7095]
[1757627055813,1.43436631,4426.0,4425.9,0.4005]
[1757627056913,1.43436631,4426.0,4425.9,0.7095]
[1757627059213,1.43436631,4426.0,4425.9,0.4005]
[1757627059414,1.43436631,4426.0,4425.9,0.2052]
[1757627062924,1.43436631,4426.0,4425.9,0.7095]
[1757627064022,1.43436631,4426.0,4425.9,0.4005]
[1757627065924,1.43436631,4426.0,4425.9,0.2052]
[1757627079642,1.43436631,4426.0,4425.7,0.309]
[1757627079835,0.422,4425.8,4425.7,0.5057]
[1757627080035,1.33666631,4425.8,4425.7,0.5057]
[1757627080740,1.33666631,4425.8,4425.7,0.7094]
[1757627081044,0.7327,4425.8,4425.7,0.7094]
[1757627084134,0.7327,4425.8,4425.5,3.2078]
[1757627084437,0.7327,4425.6,4425.5,3.2078]
[1757627084842,0.7327,4425.6,4425.5,3.4045]
[1757627085744,0.7327,4425.6,4425.5,3.7026]
[1757627086246,0.7327,4425.6,4425.5,3.9063]
[1757627090952,0.7327,4425.6,4425.5,3.6082]
[1757627094654,0.7327,4425.6,4425.5,3.9063]
[1757627103064,0.4453,4426.0,4425.5,3.7262]
[1757627103357,0.3157,4425.8,4425.7,0.4053]
[1757627103561,3.3698,4426.4,4425.8,0.2927]
[1757627103762,3.7902,4426.4,4426.3,0.1974]
[1757627103960,4.39520161,4426.4,4426.3,0.1974]
[1757627104158,4.39520161,4426.4,4426.0,0.2927]
[1757627104364,0.7361,4426.1,4426.0,0.698]
[1757627104555,1.34110161,4426.1,4426.0,0.698]
[1757627107158,1.34110161,4426.1,4426.0,0.4053]
[1757627108664,1.34110161,4426.1,4426.0,0.1974]
[1757627112162,1.34110161,4426.1,4425.8,0.2927]
[1757627112465,0.7361,4425.9,4425.8,0.4901]
[1757627112653,1.34110161,4425.9,4425.8,0.4901]
[1757627113167,1.34110161,4425.9,4425.8,0.698]
[1757627113661,1.34110161,4425.9,4425.8,0.4053]
[1757627115767,1.34110161,4425.9,4425.8,0.1974]
[1757627116770,0.7361,4425.8,4425.7,3.4052]
[1757627116969,1.34110161,4425.8,4425.7,3.9058]
[1757627117563,1.34110161,4425.8,4425.7,3.6131]
[1757627118162,1.34110161,4425.8,4425.7,3.4052]
[1757627118769,0.92070161,4425.8,4425.7,3.9058]
[1757627119370,1.12680161,4425.8,4425.7,3.9058]
[1757627120968,1.34110161,4425.8,4425.7,3.9058]
[1757627124070,1.34110161,4425.8,4425.7,3.6131]
[1757627126172,1.12680161,4425.8,4425.7,3.9058]
[1757627131979,1.34190161,4425.8,4425.7,3.9058]
[1757627139484,1.34190161,4425.8,4425.7,3.6131]
[1757627140286,1.34190161,4425.8,4425.7,3.9326]
[1757627156401,1.34190161,4425.8,4425.7,3.6131]
[1757627156605,1.34190161,4425.8,4425.7,3.9326]
[1757627158904,1.34190161,4425.8,4425.7,3.6131]
[1757627160106,1.34190161,4425.8,4425.7,3.9201]
[1757627167813,1.12680161,4425.8,4425.7,3.9201]
[1757627172111,0.60500161,4425.8,4425.7,3.9201]
[1757627172310,0.60539146,4426.0,4425.8,0.307]
[1757627172515,0.5027,4426.0,4425.9,0.4081]
[1757627172710,1.10809146,4426.0,4425.9,0.4081]
[1757627173116,1.10809146,4426.0,4425.9,0.7151]
[1757627177621,1.31419146,4426.0,4425.9,0.7151]
[1757627180321,1.43639146,4426.0,4425.9,0.7151]
[1757627183321,1.43639146,4426.0,4425.9,0.2091]
[1757627200027,0.4014,4425.8,4425.7,3.2078]
[1757627200325,0.7225,4425.8,4425.7,3.2078]
[1757627200529,1.32789146,4425.8,4425.7,3.4071]
[1757627200925,1.32789146,4425.8,4425.7,3.7136]
[1757627201230,1.32789146,4425.8,4425.7,3.9105]
[1757627201928,1.32789146,4425.8,4425.7,3.604]
[1757627202131,1.32789146,4425.8,4425.7,3.9105]